bitfinex-derivatives/quotes_BTCF0:USTF0_20250823
["timestamp","ask_amount","ask_price","bid_price","bid_amount"]
[1755958202464,1.2964441,114970.0,114960.0,1.89059993]
[1755958202763,1.2964441,114970.0,114960.0,1.89159993]
[1755958203069,1.2964441,114970.0,114960.0,2.20295413]
[1755958203463,1.2964441,114970.0,114960.0,2.69407899]
[1755958204061,1.31350357,114970.0,114960.0,2.20295319]
[1755958204459,1.34594357,114970.0,114960.0,1.40247319]
[1755958204660,1.34594357,114970.0,114960.0,1.325162]
[1755958204871,1.34594357,114970.0,114960.0,1.40347319]
[1755958205072,1.34594357,114970.0,114960.0,1.89459899]
[1755958205271,1.34594357,114970.0,114960.0,1.89359899]
[1755958205572,1.34594357,114970.0,114960.0,1.8152878]
[1755958205872,1.34594357,114970.0,114960.0,1.8162878]
[1755958206074,1.34594357,114970.0,114960.0,1.325162]
[1755958206467,1.34594357,114970.0,114960.0,1.32316187]
[1755958206668,1.34594357,114970.0,114960.0,1.32416187]
[1755958207562,1.34594357,114970.0,114960.0,1.32316187]
[1755958208574,1.34594357,114970.0,114960.0,1.32203752]
[1755958208775,1.34594357,114970.0,114960.0,1.32403752]
[1755958209475,1.34594357,114970.0,114960.0,1.40133504]
[1755958209772,1.34594357,114970.0,114960.0,1.38850174]
[1755958209970,1.34594357,114970.0,114960.0,1.40133485]
[1755958210673,1.34594357,114970.0,114960.0,1.4013348]
[1755958212171,0.54726357,114970.0,114960.0,1.4013348]
[1755958212376,1.34842357,114970.0,114960.0,1.4013348]
[1755958212874,1.34842357,114970.0,114960.0,1.38850174]
[1755958213076,1.34842357,114970.0,114960.0,1.40133468]
[1755958213871,1.84124937,114970.0,114960.0,1.16662798]
[1755958214073,1.84124937,114970.0,114960.0,0.6274728]
[1755958214074,2.11118355,114970.0,114960.0,0.6274728]
[1755958214876,2.11118355,114970.0,114960.0,0.1274728]
[1755958215075,2.11118355,114970.0,114960.0,0.1372728]
[1755958215476,2.11118355,114970.0,114960.0,0.1362728]
[1755958215869,2.11118355,114970.0,114960.0,0.1352728]
[1755958216778,1.62005775,114970.0,114960.0,0.1352728]
[1755958216972,2.11118355,114970.0,114960.0,0.1352728]
[1755958217176,2.11118355,114970.0,114960.0,0.05697466]
[1755958219176,2.11118355,114970.0,114960.0,0.05697604]
[1755958219379,1.62005775,114970.0,114960.0,0.05697604]
[1755958219685,2.11118355,114970.0,114960.0,0.05697614]
[1755958219879,2.11038355,114970.0,114960.0,0.04717614]
[1755958220069,1.86038355,114970.0,114960.0,0.04717623]
[1755958220479,1.86038355,114970.0,114960.0,0.53830203]
[1755958221080,1.86038355,114970.0,114960.0,0.04717623]
[1755958222482,1.86038355,114970.0,114960.0,0.12547848]
[1755958223890,1.86038355,114970.0,114960.0,0.61660428]
[1755958224991,1.86038355,114970.0,114960.0,0.62640428]
[1755958225494,1.86038355,114970.0,114960.0,0.62640388]
[1755958225789,1.86038355,114970.0,114960.0,0.12547808]
[1755958228290,1.86038355,114970.0,114960.0,0.13537808]
[1755958228505,1.86038355,114970.0,114960.0,0.11234225]
[1755958228685,1.86038355,114970.0,114960.0,0.13537797]
[1755958232193,1.86038355,114970.0,114960.0,0.05707572]
[1755958233396,1.86038355,114970.0,114960.0,0.07832572]
[1755958234295,1.86038355,114970.0,114960.0,0.11113572]
[1755958235495,1.86038355,114970.0,114960.0,0.07832572]
[1755958237398,1.86038355,114970.0,114960.0,0.01020246]
[1755958237600,1.86038355,114970.0,114960.0,0.03339246]
[1755958237900,1.86038355,114970.0,114960.0,0.02319]
[1755958238092,1.86038355,114970.0,114960.0,0.03339258]
[1755958239600,1.86038355,114970.0,114960.0,0.0960409]
[1755958239900,1.86038355,114970.0,114960.0,0.03339258]
[1755958247702,1.86038355,114970.0,114960.0,0.02319]
[1755958247903,1.86038355,114970.0,114960.0,0.03339259]
[1755958248910,1.86038355,114970.0,114960.0,0.06454259]
[1755958249308,1.86038355,114970.0,114960.0,0.55566839]
[1755958250307,1.86038355,114970.0,114960.0,0.58847839]
[1755958250608,1.86038355,114970.0,114960.0,0.60462839]
[1755958251017,1.86038355,114970.0,114960.0,0.19180484]
[1755958251305,1.36925775,114970.0,114960.0,0.19180484]
[1755958251506,1.86038355,114970.0,114960.0,0.20582484]
[1755958251906,1.36925775,114970.0,114960.0,0.20582484]
[1755958252106,1.86038355,114970.0,114960.0,0.20582484]
[1755958252413,1.36925775,114970.0,114960.0,0.20582484]
[1755958252711,1.36925775,114970.0,114960.0,0.19180484]
[1755958253207,1.86038355,114970.0,114960.0,0.19180484]
[1755958253409,1.36925775,114970.0,114960.0,0.19180484]
[1755958253606,1.86038355,114970.0,114960.0,0.19180484]
[1755958253806,1.86038355,114970.0,114960.0,0.15899484]
[1755958254209,1.05922355,114970.0,114960.0,0.15899484]
[1755958254410,1.85926355,114970.0,114960.0,0.15899484]
[1755958255609,1.36643775,114970.0,114960.0,0.88396734]
[1755958256613,1.36643775,114970.0,114960.0,0.88396691]
[1755958258803,1.36643775,114970.0,114960.0,0.80566466]
[1755958259000,0.56639775,114970.0,114960.0,0.80566466]
[1755958259205,1.36631775,114970.0,114960.0,0.80566466]
[1755958259608,0.56639775,114970.0,114960.0,0.80566466]
[1755958259915,1.36627775,114970.0,114960.0,0.80566463]
[1755958260114,0.56639775,114970.0,114960.0,0.80566463]
[1755958260411,0.38744947,114970.0,114960.0,1.13396688]
[1755958260613,0.01705947,114970.0,114960.0,2.08589268]
[1755958260805,1.2476846,114980.0,114970.0,0.0870091]
[1755958261007,1.2953646,114980.0,114970.0,0.82412005]
[1755958261207,1.3312246,114980.0,114970.0,0.82412005]
[1755958261406,1.3311846,114980.0,114970.0,0.73711095]
[1755958261908,0.5313446,114980.0,114970.0,0.73711095]
[1755958262103,1.3311846,114980.0,114970.0,0.73711095]
[1755958262706,0.5313446,114980.0,114970.0,0.73711095]
[1755958262911,1.8222704,114980.0,114970.0,0.73711095]
[1755958263817,1.83749975,114980.0,114970.0,0.73711095]
[1755958264622,1.34637395,114980.0,114970.0,0.73711095]
[1755958264807,1.83749975,114980.0,114970.0,0.73711095]
[1755958265011,1.83749975,114980.0,114970.0,0.73711026]
[1755958265516,1.83749975,114980.0,114970.0,0.24598446]
[1755958265719,2.19999975,114980.0,114970.0,0.11461769]
[1755958265928,2.19999975,114980.0,114970.0,0.05200449]
[1755958266117,2.19999975,114980.0,114970.0,0.11461933]
[1755958266422,2.19999975,114980.0,114970.0,0.05200449]
[1755958267017,2.19999975,114980.0,114970.0,0.08344449]
[1755958267322,2.20199975,114980.0,114970.0,0.57457029]
[1755958267620,2.20199975,114980.0,114970.0,0.58744803]
[1755958267819,2.22199189,114980.0,114970.0,0.65005852]
[1755958268122,2.22199189,114980.0,114970.0,0.68192871]
[1755958268325,2.22199189,114980.0,114970.0,0.71259871]
[1755958268721,2.22199189,114980.0,114970.0,0.22147268]
[1755958269021,2.22199189,114980.0,114970.0,0.71259848]
[1755958269615,1.73086609,114980.0,114970.0,0.22147268]
[1755958269923,2.22199189,114980.0,114970.0,0.71259848]
[1755958271122,2.22199189,114980.0,114970.0,0.69972097]
[1755958271324,2.22029189,114980.0,114970.0,0.71259818]
[1755958271732,1.72916609,114980.0,114970.0,0.71259818]
[1755958272029,1.72916609,114980.0,114970.0,0.64998769]
[1755958272232,2.22005189,114980.0,114970.0,0.64998769]
[1755958272423,1.72892609,114980.0,114970.0,0.72828994]
[1755958272622,1.72892609,114980.0,114970.0,0.73699689]
[1755958274316,1.72892609,114980.0,114970.0,0.72679523]
[1755958274625,1.72892609,114980.0,114970.0,0.73699339]
[1755958275326,0.89598609,114980.0,114970.0,0.73699339]
[1755958275526,1.36804609,114980.0,114970.0,0.73699339]
[1755958275727,1.28104149,114980.0,114970.0,0.24586759]
[1755958275928,1.28104149,114980.0,114970.0,0.83699339]
[1755958276930,1.28104149,114980.0,114970.0,0.34586759]
[1755958277232,1.36804309,114980.0,114970.0,0.83699339]
[1755958278532,0.56856309,114980.0,114970.0,0.83699339]
[1755958278835,1.36792309,114980.0,114970.0,0.91529564]
[1755958279330,1.36792309,114980.0,114970.0,0.42416984]
[1755958279531,0.48156149,114980.0,114970.0,0.91529564]
[1755958279738,1.28092149,114980.0,114970.0,0.91529564]
[1755958280336,1.28088149,114980.0,114970.0,0.83699339]
[1755958280528,1.28088149,114980.0,114970.0,0.82411915]
[1755958280726,1.28088149,114980.0,114970.0,0.8369884]
[1755958280928,1.36788309,114980.0,114970.0,1.0869884]
[1755958281831,0.47884149,114980.0,114970.0,1.0869884]
[1755958282037,1.27816149,114980.0,114970.0,1.0869884]
[1755958282538,1.27816149,114980.0,114970.0,1.16518585]
[1755958283032,1.27716149,114980.0,114970.0,1.16518585]
[1755958283334,1.27716149,114980.0,114970.0,1.16618585]
[1755958283634,0.81125,114980.0,114970.0,1.43858727]
[1755958283842,0.8678,114980.0,114970.0,1.55837599]
[1755958284232,0.8658,114980.0,114970.0,1.45178449]
[1755958284528,0.47620294,114990.0,114970.0,1.45178449]
[1755958284729,1.34464294,114990.0,114980.0,0.87459209]
[1755958284931,1.34464294,114990.0,114980.0,0.89765725]
[1755958285336,0.81330404,114990.0,114980.0,1.14765725]
[1755958285536,0.7992,114990.0,114980.0,1.14765725]
[1755958285739,0.5313319,115000.0,114990.0,0.1134041]
[1755958285940,1.3304919,115000.0,114990.0,0.79764975]
[1755958286643,1.34411252,115000.0,114990.0,0.79764975]
[1755958287035,1.34411252,115000.0,114990.0,0.71946506]
[1755958287238,0.54495252,115000.0,114990.0,0.71946506]
[1755958287448,1.34407252,115000.0,114990.0,0.71946506]
[1755958288842,1.83619832,115000.0,114990.0,0.71946506]
[1755958289247,1.83789832,115000.0,114990.0,0.30652395]
[1755958289450,2.08789832,115000.0,114990.0,0.04736516]
[1755958289631,2.08869832,115000.0,114990.0,0.02306516]
[1755958289944,1.83869832,115000.0,114990.0,0.02306516]
[1755958290433,1.34757252,115000.0,114990.0,0.04673516]
[1755958291141,1.34757252,115000.0,114990.0,0.10922825]
[1755958291943,1.83815302,115000.0,114990.0,0.10922825]
[1755958293044,1.83815302,115000.0,114990.0,0.0365353]
[1755958293234,1.83815302,115000.0,114990.0,0.04672258]
[1755958293736,1.83815302,115000.0,114990.0,0.08553849]
[1755958293737,2.08815302,115000.0,114990.0,0.08553849]
[1755958293937,2.08815302,115000.0,114990.0,0.01019978]
[1755958296345,0.0989541,114990.0,114980.0,0.06400871]
[1755958296546,0.4759741,114990.0,114980.0,0.07420918]
[1755958297034,0.4759741,114990.0,114980.0,0.12810918]
[1755958297344,0.4759741,114990.0,114980.0,0.09714047]
[1755958297546,0.4759741,114990.0,114980.0,0.12998047]
[1755958301051,0.4759741,114990.0,114980.0,0.12798047]
[1755958301245,0.4759741,114990.0,114980.0,0.12998047]
[1755958301440,0.4759741,114990.0,114980.0,0.21698207]
[1755958301750,0.4759741,114990.0,114980.0,0.21498207]
[1755958302050,0.4759741,114990.0,114980.0,0.21698207]
[1755958302652,0.4759741,114990.0,114980.0,0.2067816]
[1755958302653,1.2766341,114990.0,114980.0,0.2067816]
[1755958302950,1.2766341,114990.0,114980.0,0.31698152]
[1755958303846,1.2766341,114990.0,114980.0,0.39517396]
[1755958305956,1.2766341,114990.0,114980.0,0.39517392]
[1755958308554,1.2766341,114990.0,114980.0,0.31698148]
[1755958308947,0.9158341,114990.0,114980.0,0.31698148]
[1755958309455,0.1134741,114990.0,114980.0,0.39520947]
[1755958309646,0.1134741,114990.0,114980.0,0.64520947]
[1755958310050,0.1107541,114990.0,114980.0,0.64520947]
[1755958310250,0.1107541,114990.0,114980.0,1.13578997]
[1755958310553,0.1107541,114990.0,114980.0,0.64520947]
[1755958310852,0.1107541,114990.0,114980.0,1.13568345]
[1755958312149,0.1107541,114990.0,114980.0,1.13568296]
[1755958312350,0.1107541,114990.0,114980.0,0.64520898]
[1755958313553,0.1134741,114990.0,114980.0,0.64520898]
[1755958315049,0.1134741,114990.0,114980.0,0.56698099]
[1755958315949,0.1134741,114990.0,114980.0,0.64520898]
[1755958316145,0.02648,114990.0,114980.0,0.64520898]
[1755958317154,0.1134741,114990.0,114980.0,0.64520898]
[1755958319060,0.1134741,114990.0,114980.0,0.39520898]
[1755958321261,0.1134741,114990.0,114980.0,0.31698107]
[1755958322861,0.1134741,114990.0,114980.0,0.42657257]
[1755958324059,0.1107541,114990.0,114980.0,0.42657257]
[1755958324664,0.0962341,114990.0,114980.0,0.42657257]
[1755958325357,0.0869941,114990.0,114980.0,0.42657257]
[1755958325560,0.0869941,114990.0,114980.0,0.31698107]
[1755958327555,0.0869941,114990.0,114980.0,0.32986349]
[1755958328064,0.0869941,114990.0,114980.0,0.43945499]
[1755958328359,0.0869941,114990.0,114980.0,0.92994697]
[1755958328570,1.27708732,115000.0,114990.0,0.2055841]
[1755958328764,0.47092732,115000.0,114990.0,0.42483536]
[1755958328969,0.48454732,115000.0,114990.0,0.42483581]
[1755958329170,0.48726732,115000.0,114990.0,0.42483581]
[1755958330169,0.48726732,115000.0,114990.0,0.42483554]
[1755958330357,0.48826732,115000.0,114990.0,0.42483554]
[1755958330870,0.48826732,115000.0,114990.0,0.40175347]
[1755958331168,0.48826732,115000.0,114990.0,0.42483554]
[1755958333361,0.48726732,115000.0,114990.0,0.42483554]
[1755958333581,0.48726732,115000.0,114990.0,0.34855426]
[1755958334180,0.48896732,115000.0,114990.0,0.26156016]
[1755958334374,0.97950244,115000.0,114990.0,0.26156016]
[1755958335275,0.97950244,115000.0,114990.0,0.26156014]
[1755958335467,0.97950244,115000.0,114990.0,0.21527014]
[1755958335968,0.97950244,115000.0,114990.0,0.24765014]
[1755958336169,0.97950244,115000.0,114990.0,0.26156014]
[1755958336471,0.97950244,115000.0,114990.0,0.26155874]
[1755958337269,0.48896732,115000.0,114990.0,0.26155874]
[1755958337470,0.97950244,115000.0,114990.0,0.26155874]
[1755958339065,0.48896732,115000.0,114990.0,0.26155874]
[1755958339266,0.97950244,115000.0,114990.0,0.25135957]
[1755958339466,0.97950244,115000.0,114990.0,0.37115064]
[1755958339673,0.48896732,115000.0,114990.0,0.37115064]
[1755958340068,0.97950244,115000.0,114990.0,0.37115064]
[1755958340262,0.97950244,115000.0,114990.0,0.86168576]
[1755958340469,0.97950244,115000.0,114990.0,0.37115064]
[1755958343276,0.48896732,115000.0,114990.0,0.37115064]
[1755958343475,0.97950244,115000.0,114990.0,0.33983029]
[1755958345677,0.48896732,115000.0,114990.0,0.33983029]
[1755958345880,0.97950244,115000.0,114990.0,0.33983029]
[1755958347282,0.97950244,115000.0,114990.0,0.30745029]
[1755958347472,0.97950244,115000.0,114990.0,0.34118029]
[1755958348079,0.97950244,115000.0,114990.0,0.24118029]
[1755958348280,0.48896732,115000.0,114990.0,0.24118029]
[1755958348472,0.97950244,115000.0,114990.0,0.24118029]
[1755958348672,0.97950244,115000.0,114990.0,0.21809924]
[1755958348872,0.97950244,115000.0,114990.0,0.24118033]
[1755958349280,0.97950244,115000.0,114990.0,0.23098116]
[1755958349575,0.97950244,115000.0,114990.0,0.24118033]
[1755958349785,0.97950244,115000.0,114990.0,0.24118063]
[1755958350482,0.48896732,115000.0,114990.0,0.24118063]
[1755958350781,0.97950244,115000.0,114990.0,0.24118063]
[1755958350984,0.97950244,115000.0,114990.0,0.16290948]
[1755958352381,0.97950244,115000.0,114990.0,0.11526948]
[1755958353781,0.73896732,115000.0,114990.0,0.11207002]
[1755958353982,1.72003756,115000.0,114990.0,0.04944139]
[1755958354181,1.22950244,115000.0,114990.0,0.11007068]
[1755958354375,1.22950244,115000.0,114990.0,0.04744139]
[1755958355681,1.23050244,115000.0,114990.0,0.04744139]
[1755958356397,1.23050244,115000.0,114990.0,0.21288698]
[1755958356398,0.48852732,115000.0,114990.0,0.21288698]
[1755958356598,1.78806244,115000.0,114990.0,0.15962288]
[1755958356900,1.78806244,115000.0,114990.0,0.7371521]
[1755958357200,1.78806244,115000.0,114990.0,0.650158]
[1755958357398,1.78806244,115000.0,114990.0,0.15962288]
[1755958357800,1.78806244,115000.0,114990.0,0.16162288]
[1755958357999,1.78806244,115000.0,114990.0,0.13854149]
[1755958358301,1.78806244,115000.0,114990.0,0.16164272]
[1755958358703,1.78706244,115000.0,114990.0,0.16164272]
[1755958359089,1.78706244,115000.0,114990.0,0.65217784]
[1755958360298,1.78876244,115000.0,114990.0,0.65217784]
[1755958361192,1.78706244,115000.0,114990.0,0.75217784]
[1755958361392,1.78706244,115000.0,114990.0,0.83917147]
[1755958362197,1.78706244,115000.0,114990.0,0.73917147]
[1755958364402,1.78706244,115000.0,114990.0,0.7391712]
[1755958365296,1.78706244,115000.0,114990.0,0.81744723]
[1755958366908,1.78734244,115000.0,114990.0,0.81744723]
[1755958367606,1.78734244,115000.0,114990.0,0.8174472]
[1755958368007,1.78734244,115000.0,114990.0,0.81744718]
[1755958369407,0.97806244,115000.0,114990.0,0.81744718]
[1755958369611,1.78682244,115000.0,114990.0,0.81744718]
[1755958371408,1.78682244,115000.0,114990.0,0.32691206]
[1755958371611,1.78682244,115000.0,114990.0,0.81744718]
[1755958371907,1.78682244,115000.0,114990.0,0.73917115]
[1755958372108,1.29628732,115000.0,114990.0,0.73917115]
[1755958372308,1.78682244,115000.0,114990.0,0.73917115]
[1755958373811,1.78682244,115000.0,114990.0,0.73917216]
[1755958375105,1.78682244,115000.0,114990.0,0.81744819]
[1755958375508,1.78586244,115000.0,114990.0,0.81744819]
[1755958375909,1.78586244,115000.0,114990.0,0.73917216]
[1755958376110,0.97806244,115000.0,114990.0,0.73917216]
[1755958376312,1.78546244,115000.0,114990.0,0.73917216]
[1755958377102,1.78546244,115000.0,114990.0,0.73917282]
[1755958377812,1.78546244,115000.0,114990.0,0.72897346]
[1755958378015,1.78546244,115000.0,114990.0,0.73917282]
[1755958380112,1.29492732,115000.0,114990.0,0.73917282]
[1755958380307,1.29396732,115000.0,114990.0,1.08917282]
[1755958380608,1.29396732,115000.0,114990.0,1.16744885]
[1755958380609,1.29124732,115000.0,114990.0,1.16744885]
[1755958382612,1.29124732,115000.0,114990.0,1.08917282]
[1755958383210,0.93044732,115000.0,114990.0,1.08917282]
[1755958384309,1.29124732,115000.0,114990.0,1.08917282]
[1755958384906,0.48480732,115000.0,114990.0,1.08917282]
[1755958385106,1.29056732,115000.0,114990.0,1.19876432]
[1755958385315,0.48480732,115000.0,114990.0,1.17566221]
[1755958385515,1.29048732,115000.0,114990.0,1.08917039]
[1755958385712,1.29048732,115000.0,114990.0,1.16742404]
[1755958385912,0.92968732,115000.0,114990.0,0.67688809]
[1755958386104,0.93240732,115000.0,114990.0,0.67688809]
[1755958386311,1.29320732,115000.0,114990.0,0.58989401]
[1755958386613,1.29320732,115000.0,114990.0,1.08042913]
[1755958387014,1.29320732,115000.0,114990.0,1.16742343]
[1755958387417,0.93240732,115000.0,114990.0,1.16742343]
[1755958387617,0.93240732,115000.0,114990.0,1.15452316]
[1755958388519,1.29320732,115000.0,114990.0,1.15452316]
[1755958390413,1.29320732,115000.0,114990.0,1.06752886]
[1755958391117,1.29320732,115000.0,114990.0,0.98927521]
[1755958391312,1.29320732,115000.0,114990.0,1.09886671]
[1755958391713,1.29320732,115000.0,114990.0,0.98927521]
[1755958391921,1.29320732,115000.0,114990.0,0.49874009]
[1755958392118,1.29320732,115000.0,114990.0,1.07626951]
[1755958392422,1.29320732,115000.0,114990.0,1.18586101]
[1755958394124,1.29320732,115000.0,114990.0,1.15451604]
[1755958394928,1.29320732,115000.0,114990.0,1.15451612]
[1755958395726,1.29320732,115000.0,114990.0,1.07626959]
[1755958396318,0.48752732,115000.0,114990.0,1.07626959]
[1755958396619,1.29352732,115000.0,114990.0,1.07626959]
[1755958397325,1.29522732,115000.0,114990.0,1.07523959]
[1755958398226,1.29324732,115000.0,114990.0,1.07523959]
[1755958399621,1.29324732,115000.0,114990.0,1.15349569]
[1755958404128,1.29324732,115000.0,114990.0,1.14329701]
[1755958404333,1.29324732,115000.0,114990.0,1.1534958]
[1755958404729,1.29324732,115000.0,114990.0,1.15349581]
[1755958406130,1.29324732,115000.0,114990.0,1.26308731]
[1755958406318,1.29324732,115000.0,114990.0,1.18483121]
[1755958408333,1.29324732,115000.0,114990.0,0.69429609]
[1755958408524,1.29324732,115000.0,114990.0,1.18483121]
[1755958409928,1.29324732,115000.0,114990.0,0.35730179]
[1755958410127,1.29324732,115000.0,114990.0,0.84783691]
[1755958411135,1.29324732,115000.0,114990.0,0.93483121]
[1755958411431,1.78378244,115000.0,114990.0,0.35730179]
[1755958411635,2.14628244,115000.0,114990.0,0.20988179]
[1755958413237,2.14628244,115000.0,114990.0,0.28818761]
[1755958413435,2.14628244,115000.0,114990.0,0.16839731]
[1755958413734,2.14628244,115000.0,114990.0,0.2104766]
[1755958414529,2.14628244,115000.0,114990.0,0.1785966]
[1755958415439,1.65574732,115000.0,114990.0,0.1785966]
[1755958415626,1.65574732,115000.0,114990.0,0.2104766]
[1755958415829,2.14628244,115000.0,114990.0,0.2104766]
[1755958416031,1.65574732,115000.0,114990.0,0.2104766]
[1755958416240,2.14628244,115000.0,114990.0,0.2104766]
[1755958416927,2.14628244,115000.0,114990.0,0.6227059]
[1755958417130,1.65574732,115000.0,114990.0,0.6227059]
[1755958417334,2.14628244,115000.0,114990.0,0.6227059]
[1755958418438,2.14628244,115000.0,114990.0,0.6371159]
[1755958419743,2.14628244,115000.0,114990.0,0.62691661]
[1755958419935,2.14628244,115000.0,114990.0,0.63711586]
[1755958420738,2.14628244,115000.0,114990.0,0.20921083]
[1755958421040,2.14628244,115000.0,114990.0,0.78674025]
[1755958422344,2.14628244,115000.0,114990.0,0.69974595]
[1755958422940,2.14628244,115000.0,114990.0,0.20921083]
[1755958423145,2.14628244,115000.0,114990.0,0.69974588]
[1755958424238,1.65574732,115000.0,114990.0,0.69974588]
[1755958424542,2.14628244,115000.0,114990.0,0.69974588]
[1755958427644,2.14628244,115000.0,114990.0,0.71542161]
[1755958430350,2.14628244,115000.0,114990.0,0.22488649]
[1755958430540,2.14628244,115000.0,114990.0,0.71542161]
[1755958432937,1.34056244,115000.0,114990.0,0.74670729]
[1755958433139,2.14188244,115000.0,114990.0,0.74670729]
[1755958433337,1.65134732,115000.0,114990.0,0.74670729]
[1755958433544,2.14188244,115000.0,114990.0,0.74670729]
[1755958435345,2.14188244,115000.0,114990.0,0.83370159]
[1755958435750,2.14018244,115000.0,114990.0,0.83370159]
[1755958436950,1.64964732,115000.0,114990.0,0.83370159]
[1755958437151,2.14018244,115000.0,114990.0,0.72411009]
[1755958437450,1.64964732,115000.0,114990.0,0.72411009]
[1755958437650,1.64964732,115000.0,114990.0,0.80240608]
[1755958438043,1.65134732,115000.0,114990.0,0.31187096]
[1755958438243,1.65134732,115000.0,114990.0,0.80240608]
[1755958440350,1.64964732,115000.0,114990.0,0.80240608]
[1755958441656,1.64964732,115000.0,114990.0,0.72411009]
[1755958442060,1.64964732,115000.0,114990.0,0.80240608]
[1755958442664,1.64964732,115000.0,114990.0,0.22487666]
[1755958442863,1.65134732,115000.0,114990.0,0.71541178]
[1755958443960,1.65134732,115000.0,114990.0,0.71541183]
[1755958444366,2.14188244,115000.0,114990.0,0.71541183]
[1755958445068,1.65134732,115000.0,114990.0,0.71541183]
[1755958445270,2.14188244,115000.0,114990.0,0.71541183]
[1755958446265,2.14188244,115000.0,114990.0,0.63711584]
[1755958446770,1.65134732,115000.0,114990.0,0.14658072]
[1755958446966,2.14188244,115000.0,114990.0,0.63711584]
[1755958447166,2.14188244,115000.0,114990.0,0.05390072]
[1755958447362,2.39188244,115000.0,114990.0,0.02954072]
[1755958447568,2.39188244,115000.0,114990.0,0.01219923]
[1755958448270,2.39188244,115000.0,114990.0,0.0905099]
[1755958448471,2.39188244,115000.0,114990.0,0.0885099]
[1755958449270,2.39288244,115000.0,114990.0,0.0885099]
[1755958449862,2.39288244,115000.0,114990.0,0.1128699]
[1755958450068,2.39288244,115000.0,114990.0,0.10267067]
[1755958450263,2.39288244,115000.0,114990.0,0.1128704]
[1755958451974,2.39188244,115000.0,114990.0,0.1128704]
[1755958452175,2.39288244,115000.0,114990.0,0.1128704]
[1755958453479,2.39288244,115000.0,114990.0,0.03455973]
[1755958454083,1.59156244,115000.0,114990.0,0.03455973]
[1755958454284,2.39284244,115000.0,114990.0,0.03455973]
[1755958454573,1.90230732,115000.0,114990.0,0.11283854]
[1755958454878,2.39284244,115000.0,114990.0,0.11283854]
[1755958455277,2.39284244,115000.0,114990.0,0.03455973]
[1755958458681,2.39284244,115000.0,114990.0,0.11283854]
[1755958460678,1.67124244,115000.0,114990.0,0.11283854]
[1755958460878,2.39284244,115000.0,114990.0,0.11283854]
[1755958465781,2.39284244,115000.0,114990.0,0.03455973]
[1755958468881,2.39284244,115000.0,114990.0,0.09717974]
[1755958469189,2.39284244,115000.0,114990.0,0.0971798]
[1755958469992,2.14284244,115000.0,114990.0,0.0971798]
[1755958471194,2.14284244,115000.0,114990.0,0.03455979]
[1755958471393,2.14284244,115000.0,114990.0,0.09718161]
[1755958471980,1.65230732,115000.0,114990.0,0.11999161]
[1755958472187,2.14284244,115000.0,114990.0,0.09718615]
[1755958472591,2.63337756,115000.0,114990.0,0.01019979]
[1755958472786,2.63337756,115000.0,114990.0,0.07282917]
[1755958473494,2.14284244,115000.0,114990.0,0.07282917]
[1755958474199,2.63337756,115000.0,114990.0,0.07282917]
[1755958477791,2.14284244,115000.0,114990.0,0.07282917]
[1755958477990,2.63337756,115000.0,114990.0,0.07282917]
[1755958478396,2.63337756,115000.0,114990.0,0.07283005]
[1755958481599,2.63337756,115000.0,114990.0,0.01020067]
[1755958482200,2.63337756,115000.0,114990.0,0.0728038]
[1755958483401,2.63337756,115000.0,114990.0,0.0959438]
[1755958483902,2.14284244,115000.0,114990.0,0.0959438]
[1755958487206,2.63337756,115000.0,114990.0,0.0959438]
[1755958490208,1.65230732,115000.0,114990.0,0.0959438]
[1755958490409,2.63337756,115000.0,114990.0,0.0959438]
[1755958492100,2.63337756,115000.0,114990.0,0.03334067]
[1755958494007,2.63337756,115000.0,114990.0,0.03334068]
[1755958495307,2.63337756,115000.0,114990.0,0.0959439]
[1755958497107,2.63337756,115000.0,114990.0,0.08574322]
[1755958497308,2.63337756,115000.0,114990.0,0.0959439]
[1755958500724,1.65230732,115000.0,114990.0,0.0959439]
[1755958500923,2.63337756,115000.0,114990.0,0.0959439]
[1755958503328,2.65290764,115000.0,114990.0,0.11161949]
[1755958504528,2.65290764,115000.0,114990.0,0.08847949]
[1755958506932,2.63337756,115000.0,114990.0,0.08847949]
[1755958507129,2.63337756,115000.0,114990.0,0.11251949]
[1755958507435,1.67192464,115000.0,114990.0,0.11251949]
[1755958507624,2.65299488,115000.0,114990.0,0.11251949]
[1755958508022,2.65299488,115000.0,114990.0,0.03424068]
[1755958508525,2.16245976,115000.0,114990.0,0.09691334]
[1755958509223,2.65299488,115000.0,114990.0,0.09691334]
[1755958510330,1.67192464,115000.0,114990.0,0.09691334]
[1755958510534,2.65299488,115000.0,114990.0,0.09691334]
[1755958513138,2.65299488,115000.0,114990.0,0.07287334]
[1755958514034,2.65299488,115000.0,114990.0,0.09691334]
[1755958514634,1.67192464,115000.0,114990.0,0.09691334]
[1755958514836,2.65299488,115000.0,114990.0,0.08671266]
[1755958515135,2.65299488,115000.0,114990.0,0.09691333]
[1755958517235,2.65299488,115000.0,114990.0,0.03424067]
[1755958519632,2.90299488,115000.0,114990.0,0.07287229]
[1755958522236,2.90299488,115000.0,114990.0,0.01020067]
[1755958524145,0.0869944,114990.0,114980.0,0.09626162]
[1755958524440,1.32465304,114990.0,114980.0,0.09691307]
[1755958524747,1.32465304,114990.0,114980.0,0.08671162]
[1755958524946,1.32465304,114990.0,114980.0,0.09691311]
[1755958525142,1.32465304,114990.0,114980.0,0.07287311]
[1755958525445,1.32465304,114990.0,114980.0,0.07487311]
[1755958526948,1.32565304,114990.0,114980.0,0.07487311]
[1755958528253,1.32665304,114990.0,114980.0,0.07287311]
[1755958528748,1.32765304,114990.0,114980.0,0.07287311]
[1755958529251,1.32765304,114990.0,114980.0,0.01020149]
[1755958529443,1.32765304,114990.0,114980.0,0.07287311]
[1755958530646,1.32765304,114990.0,114980.0,0.07287379]
[1755958530846,1.32765304,114990.0,114980.0,0.09584379]
[1755958531047,1.32765304,114990.0,114980.0,0.07287379]
[1755958531253,1.32765304,114990.0,114980.0,0.01020217]
[1755958533149,1.32765304,114990.0,114980.0,0.07287379]
[1755958533753,1.32765304,114990.0,114980.0,0.06267162]
[1755958533948,1.32765304,114990.0,114980.0,0.07287381]
[1755958534942,1.32765304,114990.0,114980.0,0.09584381]
[1755958535952,1.32765304,114990.0,114980.0,0.03317219]
[1755958538055,1.32765304,114990.0,114980.0,0.01020219]
[1755958540755,1.32765304,114990.0,114980.0,9e-08]
[1755958541860,0.1305319,114980.0,114970.0,0.13433474]
[1755958542157,1.81612552,114980.0,114970.0,0.16649474]
[1755958542556,1.81612552,114980.0,114970.0,0.06267162]
[1755958542760,0.1128395,114970.0,114960.0,0.11683162]
[1755958542953,0.99628462,114970.0,114960.0,0.11683162]
[1755958543148,0.99628462,114970.0,114960.0,0.16564162]
[1755958543349,0.99628462,114970.0,114960.0,0.17921162]
[1755958543754,0.99628462,114970.0,114960.0,0.08564162]
[1755958543957,0.99628462,114970.0,114960.0,0.08764162]
[1755958546456,1.73681974,114970.0,114940.0,0.05319415]
[1755958546765,1.35709972,114950.0,114940.0,0.11115415]
[1755958546948,1.37648931,114950.0,114940.0,0.11115415]
[1755958548362,1.37648931,114950.0,114940.0,0.07081]
[1755958548664,0.1449797,114930.0,114920.0,0.11654]
[1755958548967,2.22399277,114930.0,114920.0,0.11654]
[1755958549360,2.22099277,114930.0,114920.0,0.11654]